bitfinex-derivatives/quotes_ETHF0:USTF0_20251012
["timestamp","ask_amount","ask_price","bid_price","bid_amount"]
[1760266939558,0.902,3820.8,3820.7,0.00213307]
[1760266939752,1.5598,3820.8,3820.7,0.00213307]
[1760266939948,11.29038893,3820.8,3820.0,0.2647]
[1760266940255,3.2078,3820.1,3820.0,0.2647]
[1760266940658,9.45385521,3820.1,3820.0,0.2647]
[1760266940961,50.25385521,3820.1,3820.0,0.26737838]
[1760266941365,50.25385521,3820.1,3820.0,0.88107838]
[1760266943463,6.24605521,3820.1,3820.0,1.74757838]
[1760266949468,6.24605521,3820.1,3820.0,0.88107838]
[1760266950264,50.25385521,3820.1,3820.0,0.88107838]
[1760266950471,55.25385521,3820.1,3820.0,0.88107838]
[1760266951862,50.25385521,3820.1,3820.0,0.88107838]
[1760266952075,50.25385521,3820.1,3820.0,1.74757838]
[1760266954562,50.25385521,3820.1,3820.0,0.88107838]
[1760266958364,50.25385521,3820.1,3820.0,0.26737838]
[1760266958967,55.25385521,3820.1,3819.5,0.8784]
[1760266959270,3.2078,3819.6,3819.5,0.8784]
[1760266959662,50.15641172,3819.6,3819.5,0.8784]
[1760266959863,50.15641172,3819.6,3819.5,0.87960367]
[1760266964376,50.15641172,3819.6,3819.5,0.26590367]
[1760266964569,55.15641172,3819.6,3819.5,0.26590367]
[1760266965771,55.15641172,3819.6,3818.5,0.9229]
[1760266965977,3.2078,3818.6,3818.5,0.10280669]
[1760266966369,50.46478578,3818.6,3818.5,0.10280669]
[1760266966774,50.46711943,3818.6,3818.5,0.10280669]
[1760266966972,50.46711943,3818.6,3818.5,0.76100669]
[1760266967272,47.25931943,3818.6,3818.5,1.17400669]
[1760266967472,50.46711943,3818.6,3818.5,0.76100669]
[1760266971986,50.46711943,3818.6,3818.5,0.10280669]
[1760266972474,50.46711943,3818.6,3818.5,0.76100669]
[1760266975782,50.46711943,3818.6,3818.5,0.10280669]
[1760266978285,55.46711943,3818.6,3818.5,0.10280669]
[1760266978783,55.46711943,3818.6,3817.8,0.0261931]
[1760266979086,3.2078,3817.9,3817.8,0.6843931]
[1760266979482,50.3208465,3817.9,3817.8,0.6843931]
[1760266985395,50.3208465,3817.9,3817.8,1.0973931]
[1760266985596,50.3208465,3817.9,3817.8,0.6843931]
[1760266987290,50.3208465,3817.9,3817.8,1.0973931]
[1760266987692,50.3208465,3817.9,3817.8,0.6843931]
[1760266993502,50.3208465,3817.9,3817.8,1.1110931]
[1760266993902,50.3208465,3817.9,3817.8,6.5380931]
[1760266993903,9.39650398,3817.9,3817.8,6.5380931]
[1760266994208,3.39655114,3817.9,3817.8,6.5380931]
[1760266994499,44.1820335,3818.2,3817.8,6.5380931]
[1760266994703,44.1820335,3818.2,3818.1,0.6185]
[1760266994907,43.74283169,3818.2,3818.1,0.6185]
[1760266995109,47.12486519,3818.2,3818.1,0.6185]
[1760266996810,47.12486519,3818.2,3818.0,0.259]
[1760266997012,47.12486519,3818.2,3818.0,0.8775]
[1760266997404,47.12486519,3818.2,3818.0,0.259]
[1760266997610,47.12486519,3818.2,3817.8,0.0261931]
[1760266997911,47.12486519,3818.2,3818.1,0.6185]
[1760266998108,50.33266519,3818.2,3818.1,0.6185]
[1760266998307,50.33266519,3818.2,3818.1,1.0452]
[1760266998606,50.33266519,3818.2,3818.1,1.4722]
[1760266999412,50.33266519,3818.2,3818.1,6.4722]
[1760266999606,47.3898335,3818.2,3818.1,6.4722]
[1760266999805,3.21013365,3818.6,3818.1,6.4722]
[1760267000005,3.21013365,3818.6,3818.5,1.7312]
[1760267000314,47.40513457,3818.6,3818.5,1.7312]
[1760267001013,50.43389158,3818.6,3818.5,0.8775]
[1760267001315,50.43389158,3818.6,3818.5,1.3042]
[1760267001516,50.43389158,3818.6,3818.5,1.7312]
[1760267003711,47.40513457,3818.6,3818.5,1.7312]
[1760267003912,47.40513457,3818.6,3818.5,4.08047912]
[1760267004511,47.40513457,3818.6,3818.5,1.7312]
[1760267005114,50.41866495,3818.6,3818.5,0.8775]
[1760267005321,50.41866495,3818.6,3818.5,1.3042]
[1760267005616,50.41866495,3818.6,3818.5,1.7312]
[1760267006418,50.41866495,3818.6,3818.5,1.3042]
[1760267006619,50.41866495,3818.6,3818.5,0.8775]
[1760267006922,50.41866495,3818.6,3818.5,0.259]
[1760267007614,50.41866495,3818.6,3818.1,0.6185]
[1760267007817,3.2078,3818.2,3818.1,0.6185]
[1760267008116,9.38626966,3818.2,3818.1,0.6185]
[1760267008317,9.38626966,3818.2,3818.0,0.259]
[1760267008825,14.38626966,3818.2,3818.0,0.259]
[1760267009030,14.38626966,3818.2,3817.8,0.0261931]
[1760267009324,40.8,3818.1,3818.0,0.259]
[1760267009519,40.8,3818.1,3818.0,0.8775]
[1760267009825,47.14754138,3818.1,3818.0,0.8775]
[1760267013925,50.35534138,3818.1,3818.0,0.8775]
[1760267014225,50.35534138,3818.1,3818.0,1.3042]
[1760267014426,50.35534138,3818.1,3818.0,0.8775]
[1760267018628,50.35534138,3818.1,3818.0,0.259]
[1760267019328,50.35534138,3818.1,3817.8,0.0261931]
[1760267020325,50.35534138,3818.1,3817.8,0.6625931]
[1760267020624,50.35534138,3818.1,3818.0,0.89]
[1760267021029,50.35534138,3818.1,3818.0,0.2536]
[1760267021932,55.35534138,3818.1,3817.5,0.2585]
[1760267022132,3.2078,3817.6,3817.5,0.2585]
[1760267022630,50.27097316,3817.6,3817.5,0.2585]
[1760267027123,50.27097316,3817.6,3817.5,0.8705]
[1760267035640,47.06317316,3817.6,3817.5,0.8705]
[1760267035843,50.27097316,3817.6,3817.5,0.8705]
[1760267043650,50.27097316,3817.6,3817.5,0.2585]
[1760267044352,50.27097316,3817.6,3817.5,0.8705]
[1760267046350,50.27097316,3817.6,3817.2,0.26196869]
[1760267046751,14.47097316,3817.6,3817.0,0.2585]
[1760267047054,3.2078,3817.1,3817.0,0.8705]
[1760267047256,44.0078,3817.1,3817.0,0.8705]
[1760267047447,50.42451203,3817.1,3817.0,0.8705]
[1760267048255,50.42451203,3817.1,3817.0,0.2585]
[1760267048855,50.42451203,3817.1,3816.6,0.612]
[1760267049050,3.2078,3816.7,3816.6,0.612]
[1760267049357,9.47426088,3816.7,3816.6,0.612]
[1760267050753,9.47426088,3816.7,3816.6,1.0343]
[1760267051353,9.47426088,3816.7,3816.6,0.612]
[1760267054358,6.26646088,3816.7,3816.6,0.612]
[1760267054654,9.47426088,3816.7,3816.6,0.612]
[1760267055055,9.47426088,3816.7,3816.6,1.0343]
[1760267055254,9.47426088,3816.7,3816.6,0.612]
[1760267056359,9.47426088,3816.7,3816.5,0.259]
[1760267056752,9.47426088,3816.7,3816.5,0.9096]
[1760267057046,40.8,3816.6,3816.1,0.6506]
[1760267057251,3.2078,3816.2,3816.1,0.6506]
[1760267057451,3.2078,3816.2,3816.0,0.2536]
[1760267057645,9.51078255,3816.2,3816.0,0.2536]
[1760267057849,40.8,3816.1,3816.0,0.2536]
[1760267058150,47.11728513,3816.1,3816.0,0.2536]
[1760267061157,47.11728513,3816.1,3816.0,0.9042]
[1760267062159,47.11728513,3816.1,3816.0,0.2536]
[1760267062555,47.11728513,3816.1,3815.5,0.2452]
[1760267062754,3.2078,3815.6,3815.5,0.8958]
[1760267062958,3.21083709,3815.6,3815.5,0.8958]
[1760267063258,9.58601925,3815.6,3815.5,0.8958]
[1760267063555,50.38601925,3815.6,3815.5,0.8958]
[1760267064259,50.38601925,3815.6,3815.5,0.2452]
[1760267065359,50.38601925,3815.6,3815.0,0.2452]
[1760267065564,3.2078,3815.1,3815.0,0.8958]
[1760267066064,9.64130691,3815.1,3815.0,0.8958]
[1760267068860,9.64130691,3815.1,3814.5,0.2554]
[1760267069062,3.2078,3814.6,3814.5,0.906]
[1760267069261,3.04205836,3814.6,3814.5,6.751]
[1760267069463,6.36481342,3814.6,3814.5,1.751]
[1760267069762,2.95689222,3814.6,3814.5,1.751]
[1760267071165,6.4260028,3814.6,3814.5,1.751]
[1760267072360,2.95689222,3814.6,3814.5,6.751]
[1760267072555,0.00303709,3815.6,3815.1,0.6506]
[1760267072761,0.00303709,3815.6,3815.5,1.751]
[1760267073265,3.39480579,3815.6,3815.5,1.751]
[1760267077266,1.3210894,3815.6,3815.5,6.75347705]
[1760267077567,0.01116357,3815.6,3815.5,9.10275617]
[1760267078066,3.2078,3815.9,3815.8,1.4956]
[1760267078266,3.20993335,3815.9,3815.8,1.4956]
[1760267078464,0.00213335,3815.9,3815.8,1.4956]
[1760267078668,0.00213335,3815.9,3815.8,3.84487912]
[1760267080264,0.00213335,3815.9,3815.8,1.4956]
[1760267080468,3.2078,3816.7,3816.6,1.4854]
[1760267080769,11.025268,3819.5,3817.5,1.7448]
[1760267080770,3.2078,3817.6,3817.5,1.7448]
[1760267080960,2.91320001,3817.6,3817.5,1.7448]
[1760267081165,50.13646171,3817.6,3817.5,1.7448]
[1760267081366,6.42520831,3817.6,3817.5,1.7448]
[1760267081866,47.22520831,3817.6,3817.5,1.7448]
[1760267083675,44.25249443,3817.6,3817.5,1.7448]
[1760267083861,0.00194661,3817.6,3817.5,9.9526]
[1760267084171,3.2078,3819.4,3819.1,0.6414]
[1760267084465,40.8,3819.3,3819.2,1.0915]
[1760267084769,46.89209956,3819.3,3819.2,1.5128]
[1760267084970,46.8942675,3819.3,3819.2,1.51517288]
[1760267087469,46.8942675,3819.3,3819.2,1.09387288]
[1760267088072,46.8942675,3819.3,3819.2,0.64377288]
[1760267092571,46.8942675,3819.3,3819.2,1.09387288]
[1760267092873,46.8942675,3819.3,3819.2,0.64377288]
[1760267095169,46.8942675,3819.3,3819.2,1.09387288]
[1760267095673,46.8942675,3819.3,3819.2,1.51517288]
[1760267096367,46.8942675,3819.3,3819.2,0.64377288]
[1760267098775,46.8942675,3819.3,3819.2,1.09387288]
[1760267099267,46.8942675,3819.3,3819.2,1.51517288]
[1760267100775,46.8942675,3819.3,3819.2,1.09387288]
[1760267100970,46.8942675,3819.3,3819.2,0.64377288]
[1760267101662,51.8942675,3819.3,3819.0,0.2701]
[1760267101971,51.8942675,3819.3,3819.1,0.6414]
[1760267102166,5.0,3819.2,3818.5,0.2701]
[1760267102361,46.8942675,3819.3,3818.5,0.2701]
[1760267102362,3.2078,3819.0,3818.6,0.4501]
[1760267102566,3.2078,3819.0,3818.5,0.2701]
[1760267102773,47.10723857,3818.9,3818.6,0.6414]
[1760267103771,47.10723857,3818.9,3818.7,0.6414]
[1760267105574,47.10723857,3818.9,3818.8,0.6414]
[1760267107271,52.10723857,3818.9,3818.6,0.6414]
[1760267107477,47.10723857,3818.9,3818.6,0.6414]
[1760267107872,6.30723857,3818.9,3818.5,0.27299283]
[1760267108176,3.2078,3818.6,3818.5,0.91439283]
[1760267108376,44.0078,3818.6,3818.5,0.91439283]
[1760267108572,50.35097037,3818.6,3818.5,1.36449283]
[1760267108778,50.35097037,3818.6,3818.5,1.78579283]
[1760267109077,50.35097037,3818.6,3818.5,1.36449283]
[1760267109770,50.35097037,3818.6,3818.5,1.78579283]
[1760267111673,47.14317037,3818.6,3818.5,1.78579283]
[1760267115481,3.2078,3819.2,3818.5,6.78579283]
[1760267115677,1.90124215,3819.6,3819.5,0.6799]
[1760267115882,42.70124215,3819.6,3819.5,1.7759]
[1760267116080,46.06102624,3819.6,3819.5,1.3363]
[1760267116483,49.01508286,3819.6,3819.5,1.3363]
[1760267116684,49.01785863,3819.6,3819.5,0.9256]
[1760267119486,49.01785863,3819.6,3819.5,1.3363]
[1760267119685,49.01785863,3819.6,3819.5,0.9256]
[1760267129090,49.01785863,3819.6,3819.5,1.3363]
[1760267130800,49.01785863,3819.6,3819.5,1.7759]
[1760267132395,47.11661648,3819.6,3819.5,1.7759]
[1760267132898,52.11661648,3819.6,3819.0,0.2598]
[1760267133093,3.2078,3819.1,3818.0,0.926]
[1760267133299,3.2078,3818.4,3818.1,0.6559]
[1760267133499,40.8,3818.3,3818.1,0.6559]
[1760267133694,46.77431748,3818.3,3818.1,0.6559]
[1760267134203,46.77431748,3818.3,3818.2,0.6559]
[1760267134392,5.97431748,3818.3,3818.2,4.7113]
[1760267134588,0.00277577,3819.6,3819.5,0.9157]
[1760267134793,0.00277577,3819.6,3819.5,1.3516]
[1760267135004,6.13125679,3819.6,3819.5,1.3516]
[1760267135601,46.93125679,3819.6,3819.5,1.3516]
[1760267135793,51.93125679,3819.6,3819.0,0.2598]
[1760267135989,3.2078,3819.1,3819.0,0.2598]
[1760267136396,9.69742313,3819.1,3819.0,0.2598]
[1760267140509,9.69742313,3819.1,3818.7,0.6559]
[1760267140907,9.69742313,3819.1,3818.5,0.2598]
[1760267141201,40.8,3819.0,3818.5,0.2598]
[1760267141409,3.2078,3818.9,3818.5,0.2598]
[1760267141700,9.71100582,3818.9,3818.6,0.6175]
[1760267142003,9.71100582,3818.9,3818.5,0.2598]
[1760267142201,9.71100582,3818.9,3818.6,0.6175]
[1760267142902,9.71100582,3818.9,3818.8,0.8651]
[1760267143106,3.4745267,3818.9,3818.8,1.4826]
[1760267143306,3.4745267,3818.9,3818.8,8.82230517]
[1760267144011,44.1643382,3819.4,3819.3,1.4826]
[1760267144205,40.8,3819.4,3818.8,2.33970517]
[1760267144405,3.2078,3819.0,3818.5,0.8614]
[1760267144705,3.2078,3819.0,3818.6,0.6016]
[1760267144908,6.2207253,3818.9,3818.6,0.6016]
[1760267145306,6.2207253,3818.9,3818.8,1.0291]
[1760267145611,6.2207253,3818.9,3818.8,0.6016]
[1760267146605,6.2207253,3818.9,3818.8,1.0291]
[1760267148009,6.2207253,3818.9,3818.8,0.6016]
[1760267150008,6.2207253,3818.9,3818.8,1.0291]
[1760267150204,6.2207253,3818.9,3818.8,6.4664]
[1760267150407,3.33257414,3818.9,3818.8,6.4664]
[1760267150915,3.37354889,3819.3,3819.2,1.4664]
[1760267151104,40.8,3819.4,3819.2,0.8648]
[1760267151305,40.8,3819.4,3819.3,1.4664]
[1760267151806,44.24747317,3819.4,3819.3,1.4664]
[1760267152810,44.24747317,3819.4,3819.3,0.6016]
[1760267153111,47.17256142,3819.4,3819.3,0.6016]
[1760267159619,52.17256142,3819.4,3819.0,0.2452]
[1760267159820,3.2078,3819.1,3819.0,0.8468]
[1760267160317,50.36690598,3819.1,3819.0,0.8468]
[1760267161215,50.36690598,3819.1,3819.0,0.2452]
[1760267161415,50.36690598,3819.1,3819.0,0.8468]
[1760267161915,50.36690598,3819.1,3819.0,0.2452]
[1760267162420,50.36690598,3819.1,3819.0,0.8468]
[1760267164315,47.15910598,3819.1,3819.0,1.2743]
[1760267164517,44.21264639,3819.1,3819.0,6.7116]
[1760267166624,3.41264639,3819.1,3819.0,6.7116]
[1760267167021,44.16611575,3819.4,3819.3,0.8648]
[1760267167221,0.00277577,3819.6,3819.3,1.4664]
[1760267167423,3.2078,3820.9,3819.5,4.9194]
[1760267167616,3.2078,3820.9,3820.8,1.0291]
[1760267168015,6.16688558,3820.9,3820.8,1.0291]
[1760267168221,46.96688558,3820.9,3820.8,1.0291]
[1760267168415,43.75908558,3820.9,3820.8,1.03139633]
[1760267168625,43.76230464,3820.9,3820.8,1.46869633]
[1760267170223,43.76230464,3820.9,3820.8,1.03139633]
[1760267172829,43.76230464,3820.9,3820.8,0.60389633]
[1760267173630,43.76230464,3820.9,3820.8,1.00539633]
[1760267176331,0.00321906,3820.9,3820.8,9.63849633]
[1760267179532,40.8,3822.1,3822.0,1.7157]
[1760267179731,40.8,3822.1,3822.0,4.9235]
[1760267179935,43.81261433,3822.1,3822.0,4.9235]
[1760267180430,43.81564353,3822.1,3822.0,4.9235]
[1760267180627,40.8030292,3822.1,3822.0,4.9235]
[1760267182538,3.42448221,3822.1,3822.0,4.9235]
[1760267183532,3.42448221,3822.1,3822.0,9.9235]
[1760267183732,0.0030292,3822.1,3822.0,9.9235]
[1760267185034,0.0189708,3822.8,3822.7,1.4554]
[1760267185534,3.38114516,3822.8,3822.7,1.4554]
[1760267185829,3.38386128,3822.8,3822.7,1.4554]
[1760267186430,0.02168692,3822.8,3822.7,1.4554]
[1760267186936,40.8,3823.3,3822.7,5.8268]
[1760267187136,40.8,3823.3,3823.2,4.6632]
[1760267187532,44.27160397,3823.3,3823.2,4.6632]
[1760267187833,3.47160397,3823.3,3823.2,4.6632]
[1760267188128,0.00275888,3823.3,3823.2,4.6632]
[1760267188636,3.40812269,3823.3,3823.2,4.6632]
[1760267191935,6.34846883,3823.3,3823.2,3.8364]
[1760267192140,6.34846883,3823.3,3823.2,4.6632]
[1760267194440,3.40812269,3823.3,3823.2,4.6632]
[1760267195241,0.00275888,3823.3,3823.2,4.6632]
[1760267195436,0.00275888,3823.3,3823.2,9.6632]
[1760267196440,40.8,3824.1,3824.0,1.7157]
[1760267196842,44.20659222,3824.1,3824.0,1.7157]
[1760267197335,44.20955895,3824.1,3824.0,1.71844096]
[1760267197836,46.94214009,3824.1,3824.0,1.71844096]
[1760267199043,46.94214009,3824.1,3824.0,0.89164096]
[1760267199745,55.14994009,3824.1,3824.0,0.89164096]
[1760267201441,55.14994009,3824.1,3824.0,0.00274096]
[1760267201839,55.14994009,3824.1,3824.0,0.82964096]
[1760267202038,50.14994009,3824.1,3824.0,0.82964096]
[1760267202247,46.94214009,3824.1,3824.0,0.82964096]
[1760267203049,46.94214009,3824.1,3824.0,1.24474096]
[1760267203247,46.94214009,3824.1,3824.0,1.64994096]
[1760267212058,44.20955895,3824.1,3824.0,1.64994096]
[1760267221668,3.40955895,3824.1,3824.0,1.64994096]
[1760267226078,0.00296673,3824.1,3824.0,6.64994096]
[1760267226369,3.2078,3825.9,3825.5,0.6448]
[1760267226575,40.8,3826.2,3826.1,0.4129]
[1760267226763,47.22445972,3826.2,3826.1,4.64]
[1760267226969,6.42445972,3826.4,3826.1,4.0168]
[1760267227169,3.2078,3827.0,3826.5,0.6448]
[1760267227477,47.22675065,3826.9,3826.8,1.4322]
[1760267227677,40.8,3826.9,3826.8,1.43545333]
[1760267227975,46.97174687,3826.9,3826.8,1.43545333]
[1760267228485,46.97174687,3826.9,3826.8,1.03935333]
[1760267229981,46.97174687,3826.9,3826.8,1.42795333]
[1760267230975,44.2479336,3826.9,3826.8,4.63575333]
[1760267231776,40.8,3826.9,3826.8,4.63575333]
[1760267233186,0.00241486,3827.0,3826.8,4.63575333]
[1760267233485,0.00241486,3827.0,3826.9,1.3539]
[1760267233688,40.80241486,3827.0,3826.9,1.3539]
[1760267233876,47.14430321,3827.0,3826.9,0.9653]
[1760267234276,47.14430321,3827.0,3826.9,1.3539]
[1760267235985,44.14971091,3827.0,3826.9,1.3539]
[1760267236287,46.92044861,3827.0,3826.9,4.5617]
[1760267236478,46.92044861,3827.0,3826.9,1.3539]
[1760267237681,51.92044861,3827.0,3826.9,0.5801]
[1760267238078,46.92044861,3827.0,3826.9,0.5801]
[1760267238275,46.92044861,3827.0,3826.9,1.3539]
[1760267238793,3.34971091,3827.0,3826.9,1.3539]
[1760267242585,0.22,3827.3,3827.2,1.3539]
[1760267242886,0.1289,3829.0,3827.7,0.7738]
[1760267242887,3.2078,3828.6,3827.7,0.7738]
[1760267243081,3.2078,3828.6,3827.7,4.5617]
[1760267243581,0.02405945,3827.8,3827.7,4.5617]
[1760267254488,40.8,3828.9,3827.7,8.9816]
[1760267254688,41.5805,3828.9,3828.8,1.3539]
[1760267255201,45.06920879,3828.9,3828.8,0.9653]
[1760267255493,44.56740879,3828.9,3828.8,1.3539]
[1760267255693,44.57040545,3828.9,3828.8,1.3539]
[1760267255897,44.17980545,3828.9,3828.8,1.3539]
[1760267257401,40.80299666,3828.9,3828.8,1.3539]
[1760267258904,3.2078,3830.3,3828.8,8.9816]
[1760267259103,3.7126,3830.3,3829.6,0.5801]
[1760267259295,0.3899,3829.7,3829.6,0.7738]
[1760267259608,0.81718875,3829.7,3829.6,1.3539]
[1760267259801,4.15964982,3829.7,3829.6,1.3539]
[1760267260003,4.16195413,3829.7,3829.6,1.35679971]
[1760267261107,9.65825413,3829.7,3829.6,0.99439971]
[1760267261409,4.18245413,3829.7,3829.6,1.44759971]
[1760267261602,3.38145413,3829.7,3829.6,1.44759971]
[1760267261802,0.00230431,3829.7,3829.6,1.44759971]
[1760267262601,0.00230431,3829.7,3829.6,6.44759971]
[1760267262808,0.00230431,3829.7,3829.6,1.44759971]
[1760267263100,3.2078,3830.8,3830.7,1.3774]
[1760267263301,1.32,3831.2,3831.0,0.2422]
[1760267263496,0.5913,3832.4,3831.1,3.2078]
[1760267263703,1.3841,3831.6,3831.5,3.4201]
[1760267263905,0.5913,3831.6,3831.5,3.6324]
[1760267264103,0.00202529,3831.6,3831.5,3.7651]
[1760267264406,0.59332529,3831.6,3831.5,3.6324]
[1760267264601,4.83666107,3831.6,3831.1,3.2078]
[1760267264809,0.2514,3831.5,3831.1,3.6324]
[1760267265008,0.5913,3831.4,3831.3,3.6324]
[1760267265210,4.04183578,3831.4,3831.3,3.6324]
[1760267265404,4.42653578,3831.4,3831.3,3.6324]
[1760267265610,0.00202529,3831.6,3831.4,0.1327]
[1760267265908,0.00202529,3831.6,3831.5,0.5573]
[1760267266110,0.59332529,3831.6,3831.5,0.5573]
[1760267266411,0.97802529,3831.6,3831.5,0.4246]
[1760267266704,1.38612529,3831.6,3831.5,0.4246]
[1760267267101,0.00202529,3831.6,3831.5,0.5573]
[1760267268410,0.00202529,3831.6,3831.5,5.5573]
[1760267269310,0.00202529,3831.6,3831.5,0.5573]
[1760267270504,41.0514,3832.5,3831.6,0.1307]
[1760267270811,0.2514,3832.5,3832.4,0.5489]
[1760267271111,0.8427,3832.5,3832.4,0.5489]
[1760267271611,0.84572614,3832.5,3832.4,0.42111464]
[1760267272411,0.00302614,3832.5,3832.4,0.55181464]
[1760267273107,0.59432614,3832.5,3832.4,0.42111464]
[1760267273314,0.59432614,3832.5,3832.4,0.55181464]
[1760267273611,0.00302614,3832.5,3832.4,0.55181464]
[1760267275513,1.23042614,3832.5,3832.4,0.42111464]
[1760267275716,0.00302614,3832.5,3832.4,0.55181464]
[1760267276107,0.59432614,3832.5,3832.4,0.55181464]
[1760267276617,0.00302614,3832.5,3832.4,0.55181464]
[1760267279013,41.02,3833.3,3832.4,0.55181464]
[1760267279209,0.8113,3833.3,3833.2,0.4086]
[1760267279713,1.196,3833.3,3833.2,0.4086]
[1760267280110,1.19824049,3833.3,3833.2,0.4086]
[1760267280320,0.976,3832.9,3832.8,3.4121]
[1760267280913,0.976,3832.9,3832.8,3.6164]
[1760267281310,1.3841,3832.9,3832.8,3.2078]
[1760267281504,4.09893156,3832.9,3832.8,3.4121]
[1760267281711,4.09893156,3832.9,3832.8,3.6164]
[1760267282809,4.09893156,3832.9,3832.8,3.4121]
[1760267283113,4.09893156,3832.9,3832.8,3.6164]
[1760267284914,4.09893156,3832.9,3832.8,3.2078]
[1760267285704,4.09893156,3832.9,3832.8,3.4121]
[1760267286416,11.83080768,3832.9,3832.7,3.2078]
[1760267286609,1.6355,3832.5,3832.4,0.00291464]
[1760267287111,4.63430342,3832.5,3832.4,0.00291464]
[1760267287313,7.95747954,3832.5,3832.4,0.00291464]
[1760267287916,12.95747954,3832.5,3832.4,0.00291464]
[1760267288214,12.95747954,3832.5,3831.9,3.2078]
[1760267288215,1.6355,3832.0,3831.9,3.2078]
[1760267288409,1.6355,3832.0,3831.2,0.1277]
[1760267288410,6.6355,3832.0,3831.3,3.2078]
[1760267288615,6.6355,3832.0,3831.3,3.4121]
[1760267288616,1.3841,3831.4,3831.3,3.4121]
[1760267289118,4.40615051,3831.4,3831.3,3.21061432]
[1760267290013,4.40615051,3831.4,3831.3,0.00281432]
[1760267290213,0.2336,3830.5,3830.4,3.4498]
[1760267290516,0.8742,3830.5,3830.4,3.6918]
[1760267291118,1.6688,3830.5,3830.4,3.6918]
[1760267291321,1.67147803,3830.5,3830.4,3.6945283]
[1760267292821,5.0375957,3830.5,3830.4,3.2105283]
[1760267293016,7.89094423,3830.5,3830.4,3.2105283]
[1760267293222,7.89094423,3830.5,3830.4,0.0027283]
[1760267293519,48.69094423,3830.5,3830.4,0.0027283]
[1760267294020,45.0429957,3830.5,3830.4,3.8458283]
[1760267294220,45.8375957,3830.5,3830.4,0.0027283]
[1760267294425,48.8461131,3830.5,3830.4,0.0027283]
[1760267296824,0.2336,3830.0,3829.3,3.2078]
[1760267297321,0.2336,3830.0,3829.7,3.2078]
[1760267297526,0.6406,3829.9,3829.7,3.2078]
[1760267297724,0.2336,3830.0,3829.7,3.209837]
[1760267297928,0.6406,3829.9,3829.7,0.002037]
[1760267298730,1.4352,3829.8,3829.7,0.002037]
[1760267298922,4.79307899,3829.8,3829.7,0.002037]
[1760267299122,1.4352,3829.8,3829.7,0.002037]
[1760267300028,7.67691217,3829.8,3829.7,0.002037]
[1760267300727,0.6406,3828.9,3828.5,3.2078]
[1760267301021,9.44951217,3829.8,3828.5,3.2078]
[1760267301228,3.2078,3830.2,3829.3,3.2078]
[1760267301618,0.6406,3829.9,3829.3,3.2078]
[1760267301925,0.6406,3829.9,3829.3,3.21047367]
[1760267302122,0.6406,3829.9,3829.7,3.2078]
[1760267302523,0.6406,3830.2,3829.7,3.2078]
[1760267302927,4.00264086,3830.1,3829.7,3.2078]
[1760267303130,0.6406,3830.1,3829.7,3.2078]
[1760267303430,1.0473,3830.3,3829.7,3.2078]
[1760267303825,3.34328413,3830.2,3829.7,3.2078]
[1760267304020,3.34328413,3830.2,3829.3,3.21047367]
[1760267304220,0.6406,3829.9,3829.3,3.21047367]
[1760267304426,1.0473,3829.9,3829.3,3.21047367]
[1760267304927,0.2336,3830.0,3829.3,3.21047367]
[1760267305133,0.2336,3829.5,3829.3,3.21047367]
[1760267305435,0.6406,3829.4,3829.3,3.21047367]
[1760267306328,0.2336,3829.5,3829.3,3.21047367]
[1760267307631,0.6406,3829.7,3829.3,3.21047367]
[1760267307829,0.2336,3830.0,3829.3,3.21047367]
[1760267309232,0.6406,3830.1,3829.3,3.21047367]
[1760267309436,3.2078,3830.3,3829.3,3.21047367]
[1760267309734,3.46779808,3830.2,3829.3,3.21047367]
[1760267310537,0.2336,3829.5,3829.3,3.21047367]
[1760267310737,0.6406,3829.4,3829.3,3.21047367]
[1760267311438,1.0473,3829.4,3829.3,3.21047367]
[1760267311834,1.4352,3829.4,3829.3,3.21047367]
[1760267312336,1.0473,3829.4,3829.3,3.21047367]
[1760267313443,1.4352,3829.4,3829.3,3.21047367]
[1760267314540,1.0473,3829.4,3829.3,3.21047367]
[1760267317242,1.4352,3829.4,3829.3,3.21047367]
[1760267317542,1.0473,3829.4,3829.3,3.21047367]
[1760267317845,0.6406,3829.4,3829.3,3.21047367]
[1760267318040,1.0473,3829.4,3829.3,3.21047367]
[1760267319439,0.6406,3829.4,3829.3,5.55140473]
[1760267319637,1.0473,3829.4,3829.3,5.55140473]
[1760267320240,1.4352,3829.4,3829.3,2.34360473]
[1760267321541,1.0473,3829.4,3829.3,2.34360473]
[1760267323043,1.0473,3829.4,3829.3,2.33241096]
[1760267323246,0.2336,3829.5,3829.3,0.00267367]
[1760267323452,0.6464,3829.4,3829.3,0.00267367]
[1760267324749,3.8542,3829.8,3829.3,0.00267367]
[1760267324945,0.6464,3829.7,3829.5,2.3298316]
[1760267325448,0.4292,3829.7,3829.5,2.3298316]
[1760267325648,0.6464,3829.6,3829.5,2.3298316]
[1760267330445,3.637,3829.8,3829.3,0.00267367]
[1760267330645,0.6464,3829.7,3829.6,2.32970921]
[1760267331451,0.2336,3830.0,3829.6,2.32970921]
[1760267331646,0.6464,3829.9,3829.6,2.32970921]
[1760267331847,0.88,3830.0,3829.6,3.2884473]
[1760267332042,0.6464,3829.9,3829.6,3.2884473]
[1760267332856,0.6464,3830.3,3829.6,3.2884473]
[1760267333060,0.6464,3830.3,3830.0,2.32898008]
[1760267333356,3.88921611,3830.3,3830.0,2.32898008]
[1760267333653,0.6464,3830.2,3830.0,2.32898008]
[1760267333856,0.6464,3830.1,3830.0,2.32898008]
[1760267334062,4.11385719,3830.1,3830.0,2.32898008]
[1760267335360,3.8542,3830.4,3829.6,3.2884473]
[1760267335662,6.62910055,3830.4,3829.9,3.2884473]
[1760267335847,0.6464,3830.3,3829.9,3.2884473]
[1760267336050,7.05830055,3830.4,3829.9,3.2884473]
[1760267336255,1.7454,3830.0,3829.9,3.2884473]
[1760267336460,0.6464,3829.9,3829.7,3.2884473]
[1760267336659,1.4871,3829.8,3829.7,3.2884473]
[1760267336858,0.9047,3829.5,3829.4,3.2884473]
[1760267337763,5.16097034,3829.5,3829.4,3.2884473]
[1760267337960,5.16097034,3829.5,3829.3,0.00267367]
[1760267339469,42.2871,3829.4,3829.3,0.00267367]
[1760267339763,45.71301365,3829.4,3829.3,0.00267367]
[1760267340170,53.72838934,3829.4,3829.3,0.00267367]